fUSD/lending_fUSD_20260612
["ID","MTS","AMOUNT","RATE_DAILY","PERIOD"]
[424900155,1781257841000,-1395.07,0.00013698,2]
[424900162,1781257841000,-1395.07,0.00013698,2]
[424900163,1781257841000,-1395.07,0.00013698,2]
[424900161,1781257841000,-1395.07,0.00013698,2]
[424900167,1781257841000,-1395.07,0.00013698,2]
[424900165,1781257841000,-1395.07,0.00013698,2]
[424900170,1781257841000,-1395.07,0.00013698,2]
[424900168,1781257841000,-1395.07,0.00013698,2]
[424900171,1781257841000,-1395.07,0.00013698,2]
[424900169,1781257841000,-1395.07,0.00013698,2]
[424900166,1781257841000,-1395.07,0.00013698,2]
[424900172,1781257841000,-1395.07,0.00013698,2]
[424900175,1781257841000,-500.0,0.00013698,2]
[424900174,1781257841000,-500.0,0.00013698,2]
[424900164,1781257841000,-1395.07,0.00013698,2]
[424900244,1781257842000,-1533.69,0.00013698,2]
[424900237,1781257842000,-1533.69,0.00013698,2]
[424900235,1781257842000,-1533.69,0.00013698,2]
[424900236,1781257842000,-1533.69,0.00013698,2]
[424900233,1781257842000,-635.08,0.00013698,2]
[424900209,1781257842000,-655.84,0.00013698,2]
[424900230,1781257842000,-500.0,0.00013698,2]
[424900232,1781257842000,-500.0,0.00013698,2]
[424900231,1781257842000,-500.0,0.00013698,2]
[424900224,1781257842000,-513.58758268,0.00013698,2]
[424900234,1781257842000,-1533.69,0.00013698,2]
[424900239,1781257842000,-1533.69,0.00013698,2]
[424900251,1781257842000,-1533.69,0.00013698,2]
[424900238,1781257842000,-1533.69,0.00013698,2]
[424900240,1781257842000,-1533.69,0.00013698,2]
[424900242,1781257842000,-1533.69,0.00013698,2]
[424900245,1781257842000,-1533.69,0.00013698,2]
[424900247,1781257842000,-1533.69,0.00013698,2]
[424900248,1781257842000,-1533.69,0.00013698,2]
[424900249,1781257842000,-1533.69,0.00013698,2]
[424900246,1781257842000,-1533.69,0.00013698,2]
[424900254,1781257842000,-1533.69,0.00013698,2]
[424900256,1781257842000,-1533.69,0.00013698,2]
[424900227,1781257842000,-500.0,0.00013698,2]
[424900243,1781257842000,-1533.69,0.00013698,2]
[424900223,1781257842000,-500.0,0.00013698,2]
[424900219,1781257842000,-254.97411398,0.00013698,2]
[424900229,1781257842000,-500.0,0.00013698,2]
[424900200,1781257842000,-655.84,0.00013698,2]
[424900203,1781257842000,-655.84,0.00013698,2]
[424900204,1781257842000,-655.84,0.00013698,2]
[424900201,1781257842000,-655.84,0.00013698,2]
[424900208,1781257842000,-655.84,0.00013698,2]
[424900206,1781257842000,-655.84,0.00013698,2]
[424900202,1781257842000,-655.84,0.00013698,2]
[424900207,1781257842000,-655.84,0.00013698,2]
[424900205,1781257842000,-655.84,0.00013698,2]
[424900211,1781257842000,-655.84,0.00013698,2]
[424900218,1781257842000,-500.0,0.00013698,2]
[424900228,1781257842000,-500.0,0.00013698,2]
[424900220,1781257842000,-500.0,0.00013698,2]
[424900250,1781257842000,-1533.69,0.00013698,2]
[424900212,1781257842000,-655.84,0.00013698,2]
[424900213,1781257842000,-655.84,0.00013698,2]
[424900217,1781257842000,-500.0,0.00013698,2]
[424900215,1781257842000,-655.99641167,0.00013698,2]
[424900216,1781257842000,-500.0,0.00013698,2]
[424900214,1781257842000,-655.84,0.00013698,2]
[424900222,1781257842000,-500.0,0.00013698,2]
[424900221,1781257842000,-500.0,0.00013698,2]
[424900225,1781257842000,-500.0,0.00013698,2]
[424900226,1781257842000,-500.0,0.00013698,2]
[424900210,1781257842000,-655.84,0.00013698,2]
[424900255,1781257842000,-1533.69,0.00013698,2]
[424900241,1781257842000,-1533.69,0.00013698,2]
[424900258,1781257842000,-1533.90571055,0.00013698,2]
[424900286,1781257842000,-500.0,0.00013698,2]
[424900285,1781257842000,-570.66,0.00013698,2]
[424900290,1781257842000,-500.0,0.00013698,2]
[424900284,1781257842000,-500.0,0.00013698,2]
[424900291,1781257842000,-570.66,0.00013698,2]
[424900293,1781257842000,-500.0,0.00013698,2]
[424900294,1781257842000,-500.0,0.00013698,2]
[424900298,1781257842000,-500.0,0.00013698,2]
[424900302,1781257842000,-287.06193287,0.00013698,2]
[424900299,1781257842000,-570.66,0.00013698,2]
[424900300,1781257842000,-500.0,0.00013698,2]
[424900301,1781257842000,-570.66,0.00013698,2]
[424900296,1781257842000,-500.0,0.00013698,2]
[424900295,1781257842000,-570.66,0.00013698,2]
[424900297,1781257842000,-570.66,0.00013698,2]
[424900303,1781257842000,-570.66,0.00013698,2]
[424900305,1781257842000,-570.66,0.00013698,2]
[424900306,1781257842000,-570.66,0.00013698,2]
[424900308,1781257842000,-570.66,0.00013698,2]
[424900252,1781257842000,-1533.69,0.00013698,2]
[424900312,1781257842000,-570.66,0.00013698,2]
[424900309,1781257842000,-570.66,0.00013698,2]
[424900311,1781257842000,-570.66,0.00013698,2]
[424900310,1781257842000,-570.66,0.00013698,2]
[424900304,1781257842000,-570.66,0.00013698,2]
[424900287,1781257842000,-570.66,0.00013698,2]
[424900283,1781257842000,-570.66,0.00013698,2]
[424900307,1781257842000,-570.66,0.00013698,2]
[424900288,1781257842000,-500.0,0.00013698,2]
[424900289,1781257842000,-570.66,0.00013698,2]
[424900257,1781257842000,-1533.69,0.00013698,2]
[424900260,1781257842000,-500.0,0.00013698,2]
[424900261,1781257842000,-500.0,0.00013698,2]
[424900262,1781257842000,-500.0,0.00013698,2]
[424900263,1781257842000,-500.0,0.00013698,2]
[424900264,1781257842000,-500.0,0.00013698,2]
[424900266,1781257842000,-500.0,0.00013698,2]
[424900265,1781257842000,-500.0,0.00013698,2]
[424900267,1781257842000,-500.0,0.00013698,2]
[424900268,1781257842000,-500.0,0.00013698,2]
[424900270,1781257842000,-500.0,0.00013698,2]
[424900259,1781257842000,-500.0,0.00013698,2]
[424900277,1781257842000,-570.66,0.00013698,2]
[424900272,1781257842000,-500.0,0.00013698,2]
[424900281,1781257842000,-500.0,0.00013698,2]
[424900280,1781257842000,-570.66,0.00013698,2]
[424900279,1781257842000,-500.0,0.00013698,2]
[424900274,1781257842000,-523.0467315,0.00013698,2]
[424900282,1781257842000,-570.66,0.00013698,2]
[424900275,1781257842000,-500.0,0.00013698,2]
[424900269,1781257842000,-500.0,0.00013698,2]
[424900271,1781257842000,-500.0,0.00013698,2]
[424900273,1781257842000,-500.0,0.00013698,2]
[424900292,1781257842000,-500.0,0.00013698,2]
[424900339,1781257843000,-923.27,0.00013698,2]
[424900343,1781257843000,-923.27,0.00013698,2]
[424900341,1781257843000,-923.27,0.00013698,2]
[424900338,1781257843000,-923.27,0.00013698,2]
[424900336,1781257843000,-923.27,0.00013698,2]
[424900345,1781257843000,-923.27,0.00013698,2]
[424900342,1781257843000,-923.27,0.00013698,2]
[424900337,1781257843000,-923.27,0.00013698,2]
[424900340,1781257843000,-923.27,0.00013698,2]
[424900354,1781257843000,-500.0,0.00013698,2]
[424900346,1781257843000,-923.35,0.00013698,2]
[424900348,1781257843000,-500.0,0.00013698,2]
[424900349,1781257843000,-500.0,0.00013698,2]
[424900355,1781257843000,-500.0,0.00013698,2]
[424900350,1781257843000,-500.0,0.00013698,2]
[424900351,1781257843000,-500.0,0.00013698,2]
[424900352,1781257843000,-500.0,0.00013698,2]
[424900335,1781257843000,-923.27,0.00013698,2]
[424900353,1781257843000,-500.0,0.00013698,2]
[424900347,1781257843000,-500.0,0.00013698,2]
[424900334,1781257843000,-923.27,0.00013698,2]
[424900313,1781257843000,-570.66,0.00013698,2]
[424900332,1781257843000,-923.27,0.00013698,2]
[424900356,1781257843000,-500.0,0.00013698,2]
[424900314,1781257843000,-570.72339816,0.00013698,2]
[424900315,1781257843000,-500.0,0.00013698,2]
[424900322,1781257843000,-923.27,0.00013698,2]
[424900316,1781257843000,-500.0,0.00013698,2]
[424900319,1781257843000,-500.0,0.00013698,2]
[424900321,1781257843000,-325.58534652,0.00013698,2]
[424900320,1781257843000,-506.97171654,0.00013698,2]
[424900318,1781257843000,-500.0,0.00013698,2]
[424900317,1781257843000,-500.0,0.00013698,2]
[424900324,1781257843000,-923.27,0.00013698,2]
[424900323,1781257843000,-923.27,0.00013698,2]
[424900325,1781257843000,-923.27,0.00013698,2]
[424900326,1781257843000,-923.27,0.00013698,2]
[424900328,1781257843000,-923.27,0.00013698,2]
[424900330,1781257843000,-923.27,0.00013698,2]
[424900327,1781257843000,-923.27,0.00013698,2]
[424900331,1781257843000,-923.27,0.00013698,2]
[424900329,1781257843000,-923.27,0.00013698,2]
[424900333,1781257843000,-923.27,0.00013698,2]
[424900362,1781257843000,-500.0,0.00013698,2]
[424900412,1781257843000,-500.0,0.00013698,2]
[424900358,1781257843000,-500.0,0.00013698,2]
[424900388,1781257843000,-500.0,0.00013698,2]
[424900390,1781257843000,-500.0,0.00013698,2]
[424900386,1781257843000,-500.0,0.00013698,2]
[424900392,1781257843000,-500.0,0.00013698,2]
[424900397,1781257843000,-500.0,0.00013698,2]
[424900394,1781257843000,-500.0,0.00013698,2]
[424900398,1781257843000,-557.28566651,0.00013698,2]
[424900357,1781257843000,-500.0,0.00013698,2]
[424900399,1781257843000,-500.0,0.00013698,2]
[424900402,1781257843000,-500.0,0.00013698,2]
[424900391,1781257843000,-500.0,0.00013698,2]
[424900395,1781257843000,-500.0,0.00013698,2]
[424900396,1781257843000,-500.0,0.00013698,2]
[424900406,1781257843000,-500.0,0.00013698,2]
[424900408,1781257843000,-500.0,0.00013698,2]
[424900409,1781257843000,-500.0,0.00013698,2]
[424900411,1781257843000,-500.0,0.00013698,2]
[424900410,1781257843000,-500.0,0.00013698,2]
[424900413,1781257843000,-500.0,0.00013698,2]
[424900384,1781257843000,-500.0,0.00013698,2]
[424900385,1781257843000,-500.0,0.00013698,2]
[424900404,1781257843000,-500.0,0.00013698,2]
[424900387,1781257843000,-500.0,0.00013698,2]
[424900389,1781257843000,-500.0,0.00013698,2]
[424900365,1781257843000,-500.0,0.00013698,2]
[424900360,1781257843000,-500.0,0.00013698,2]
[424900359,1781257843000,-500.0,0.00013698,2]
[424900364,1781257843000,-500.0,0.00013698,2]
[424900361,1781257843000,-500.0,0.00013698,2]
[424900366,1781257843000,-500.0,0.00013698,2]
[424900379,1781257843000,-500.0,0.00013698,2]
[424900380,1781257843000,-500.0,0.00013698,2]
[424900368,1781257843000,-500.0,0.00013698,2]
[424900363,1781257843000,-500.0,0.00013698,2]
[424900372,1781257843000,-568.86606438,0.00013698,2]
[424900370,1781257843000,-500.0,0.00013698,2]
[424900382,1781257843000,-500.0,0.00013698,2]
[424900383,1781257843000,-500.0,0.00013698,2]
[424900377,1781257843000,-500.0,0.00013698,2]
[424900381,1781257843000,-500.0,0.00013698,2]
[424900373,1781257843000,-500.0,0.00013698,2]
[424900376,1781257843000,-500.0,0.00013698,2]
[424900374,1781257843000,-500.0,0.00013698,2]
[424900378,1781257843000,-500.0,0.00013698,2]
[424900442,1781257844000,-1529.75,0.00013698,2]
[424900437,1781257844000,-1529.75,0.00013698,2]
[424900443,1781257844000,-1529.75,0.00013698,2]
[424900445,1781257844000,-1529.75,0.00013698,2]
[424900440,1781257844000,-1529.75,0.00013698,2]
[424900439,1781257844000,-1529.75,0.00013698,2]
[424900441,1781257844000,-1529.75,0.00013698,2]
[424900444,1781257844000,-1529.75,0.00013698,2]
[424900436,1781257844000,-1529.75,0.00013698,2]
[424900447,1781257844000,-1529.75,0.00013698,2]
[424900450,1781257844000,-500.0,0.00013698,2]
[424900451,1781257844000,-500.0,0.00013698,2]
[424900449,1781257844000,-500.0,0.00013698,2]
[424900448,1781257844000,-238.7383011,0.00013698,2]
[424900438,1781257844000,-1529.75,0.00013698,2]
[424900453,1781257844000,-500.0,0.00013698,2]
[424900454,1781257844000,-515.12373106,0.00013698,2]
[424900458,1781257844000,-500.0,0.00013698,2]
[424900455,1781257844000,-500.0,0.00013698,2]
[424900446,1781257844000,-1529.75,0.00013698,2]
[424900435,1781257844000,-1529.75,0.00013698,2]
[424900452,1781257844000,-500.0,0.00013698,2]
[424900427,1781257844000,-500.0,0.00013698,2]
[424900459,1781257844000,-500.0,0.00013698,2]
[424900414,1781257844000,-500.0,0.00013698,2]
[424900415,1781257844000,-500.0,0.00013698,2]
[424900416,1781257844000,-500.0,0.00013698,2]
[424900417,1781257844000,-500.0,0.00013698,2]
[424900418,1781257844000,-500.0,0.00013698,2]
[424900419,1781257844000,-500.0,0.00013698,2]
[424900424,1781257844000,-500.0,0.00013698,2]
[424900422,1781257844000,-500.0,0.00013698,2]
[424900430,1781257844000,-1529.75,0.00013698,2]
[424900421,1781257844000,-500.0,0.00013698,2]
[424900425,1781257844000,-500.0,0.00013698,2]
[424900420,1781257844000,-500.0,0.00013698,2]
[424900426,1781257844000,-500.0,0.00013698,2]
[424900428,1781257844000,-189.37017155,0.00013698,2]
[424900433,1781257844000,-1529.75,0.00013698,2]
[424900432,1781257844000,-1529.75,0.00013698,2]
[424900434,1781257844000,-1529.75,0.00013698,2]
[424900431,1781257844000,-1529.75,0.00013698,2]
[424900429,1781257844000,-1529.75,0.00013698,2]
[424900423,1781257844000,-500.0,0.00013698,2]
[424900463,1781257844000,-500.0,0.00013698,2]
[424900501,1781257844000,-150.0,0.00013949,2]
[424900464,1781257844000,-500.0,0.00013698,2]
[424900484,1781257844000,-150.0,0.00013718,2]
[424900487,1781257844000,-150.0,0.00013766,2]
[424900486,1781257844000,-157.14213509,0.00013736,2]
[424900491,1781257844000,-803.39,0.00013811,2]
[424900495,1781257844000,-150.0,0.00013871,2]
[424900488,1781257844000,-150.0,0.00013787,2]
[424900492,1781257844000,-150.0,0.00013821,2]
[424900489,1781257844000,-150.0,0.00013787,2]
[424900493,1781257844000,-150.0,0.00013834,2]
[424900477,1781257844000,-162.96,0.00013699,2]
[424900490,1781257844000,-150.0,0.00013801,2]
[424900497,1781257844000,-32707.87555069,0.00013929,2]
[424900496,1781257844000,-150.0,0.00013906,2]
[424900499,1781257844000,-150.0,0.00013937,2]
[424900498,1781257844000,-150.0,0.00013937,2]
[424900504,1781257844000,-150.0,0.00013987,2]
[424900505,1781257844000,-32444.69653564,0.0001399,2]
[424900500,1781257844000,-150.0,0.00013941,2]
[424900502,1781257844000,-150.0,0.00013976,2]
[424900503,1781257844000,-150.0,0.00013987,2]
[424900494,1781257844000,-150.0,0.00013836,2]
[424900476,1781257844000,-195.55,0.00013699,2]
[424900456,1781257844000,-172.1676913,0.00013698,2]
[424900481,1781257844000,-163.69,0.000137,2]
[424900461,1781257844000,-500.0,0.00013698,2]
[424900457,1781257844000,-500.0,0.00013698,2]
[424900460,1781257844000,-500.0,0.00013698,2]
[424900462,1781257844000,-500.0,0.00013698,2]
[424900465,1781257844000,-500.0,0.00013698,2]
[424900483,1781257844000,-500.0,0.00013705,2]
[424900468,1781257844000,-500.0,0.00013698,2]
[424900469,1781257844000,-500.0,0.00013698,2]
[424900470,1781257844000,-500.0,0.00013698,2]
[424900471,1781257844000,-500.0,0.00013698,2]
[424900467,1781257844000,-500.0,0.00013698,2]
[424900472,1781257844000,-531.05929864,0.00013698,2]
[424900473,1781257844000,-337.92,0.00013699,2]
[424900474,1781257844000,-281.6,0.00013699,2]
[424900475,1781257844000,-234.66,0.00013699,2]
[424900480,1781257844000,-2500.0,0.00013699,2]
[424900482,1781257844000,-2000.0,0.00013705,2]
[424900485,1781257844000,-150.0,0.00013732,2]
[424900478,1781257844000,-200.0,0.00013699,2]
[424900479,1781257844000,-814.83,0.00013699,2]
[424900466,1781257844000,-500.0,0.00013698,2]
[424900538,1781257845000,-555.64276628,0.00014209,2]
[424900537,1781257845000,-32707.87555069,0.00014208,2]
[424900536,1781257845000,-237.896148,0.00014187,2]
[424900530,1781257845000,-786.0,0.00014178,2]
[424900535,1781257845000,-150.0,0.00014185,2]
[424900531,1781257845000,-786.0,0.00014178,2]
[424900533,1781257845000,-935.242,0.00014178,2]
[424900534,1781257845000,-150.0,0.00014179,2]
[424900540,1781257845000,-1529.75,0.00014209,2]
[424900548,1781257845000,-150.0,0.00014237,2]
[424900544,1781257845000,-150.0,0.0001422,2]
[424900539,1781257845000,-1529.75,0.00014209,2]
[424900542,1781257845000,-1529.75,0.00014209,2]
[424900543,1781257845000,-1529.78918085,0.00014209,2]
[424900545,1781257845000,-249.857763,0.00014236,2]
[424900557,1781257845000,-150.0,0.00014295,2]
[424900558,1781257845000,-150.0,0.0001432,2]
[424900547,1781257845000,-150.0,0.00014237,2]
[424900550,1781257845000,-150.0,0.00014237,2]
[424900532,1781257845000,-786.0,0.00014178,2]
[424900541,1781257845000,-1529.75,0.00014209,2]
[424900528,1781257845000,-786.0,0.00014178,2]
[424900519,1781257845000,-150.0,0.00014154,2]
[424900526,1781257845000,-786.0,0.00014178,2]
[424900546,1781257845000,-251.24646,0.00014236,2]
[424900507,1781257845000,-150.0,0.00014045,2]
[424900514,1781257845000,-374.111596,0.00014094,2]
[424900509,1781257845000,-1517.43147194,0.00014056,2]
[424900513,1781257845000,-150.0,0.00014087,2]
[424900508,1781257845000,-232.362584,0.00014047,2]
[424900516,1781257845000,-150.0,0.00014115,2]
[424900511,1781257845000,-150.0,0.0001408,2]
[424900512,1781257845000,-150.0,0.00014087,2]
[424900529,1781257845000,-786.0,0.00014178,2]
[424900510,1781257845000,-150.0,0.00014064,2]
[424900515,1781257845000,-287.186671,0.00014095,2]
[424900518,1781257845000,-301.97830026,0.00014153,2]
[424900520,1781257845000,-803.39,0.00014157,2]
[424900522,1781257845000,-242.344058,0.00014166,2]
[424900521,1781257845000,-250.0,0.0001416,2]
[424900523,1781257845000,-265.082663,0.00014166,2]
[424900527,1781257845000,-786.0,0.00014178,2]
[424900525,1781257845000,-786.0,0.00014178,2]
[424900524,1781257845000,-309.77137,0.00014166,2]
[424900517,1781257845000,-150.0,0.0001415,2]
[424900506,1781257845000,-150.0,0.0001401,2]
[424900549,1781257845000,-150.0,0.00014237,2]
[424900555,1781257845000,-150.0,0.00014254,2]
[424900580,1781257845000,-500.0,0.00014451,2]
[424900582,1781257845000,-500.0,0.00014451,2]
[424900583,1781257845000,-500.0,0.00014451,2]
[424900581,1781257845000,-336.21909563,0.00014451,2]
[424900587,1781257845000,-500.0,0.00014451,2]
[424900586,1781257845000,-500.0,0.00014451,2]
[424900589,1781257845000,-500.0,0.00014451,2]
[424900588,1781257845000,-500.0,0.00014451,2]
[424900590,1781257845000,-500.0,0.00014451,2]
[424900594,1781257845000,-150.0,0.00014487,2]
[424900592,1781257845000,-150.0,0.00014464,2]
[424900593,1781257845000,-4923.92781698,0.00014477,2]
[424900595,1781257845000,-150.0,0.00014487,2]
[424900597,1781257845000,-150.0,0.00014498,2]
[424900596,1781257845000,-1237.51,0.00014497,2]
[424900599,1781257845000,-150.0,0.00014525,2]
[424900601,1781257845000,-150.0,0.00014537,2]
[424900602,1781257845000,-150.0,0.00014537,2]
[424900598,1781257845000,-803.39,0.00014502,2]
[424900600,1781257845000,-150.0,0.00014533,2]
[424900554,1781257845000,-81986.71741548,0.0001425,2]
[424900585,1781257845000,-500.0,0.00014451,2]
[424900584,1781257845000,-500.0,0.00014451,2]
[424900591,1781257845000,-235.71588977,0.00014451,2]
[424900578,1781257845000,-500.0,0.00014451,2]
[424900579,1781257845000,-500.0,0.00014451,2]
[424900552,1781257845000,-22331.25726412,0.0001425,2]
[424900559,1781257845000,-150.0,0.00014324,2]
[424900561,1781257845000,-150.0,0.00014387,2]
[424900563,1781257845000,-150.0,0.00014394,2]
[424900560,1781257845000,-150.0,0.00014359,2]
[424900564,1781257845000,-40686.51011897,0.000144,2]
[424900567,1781257845000,-150.0,0.00014402,2]
[424900565,1781257845000,-150.0,0.00014402,2]
[424900562,1781257845000,-150.0,0.00014387,2]
[424900566,1781257845000,-150.0,0.00014402,2]
[424900556,1781257845000,-150.0,0.00014289,2]
[424900571,1781257845000,-150.0,0.00014429,2]
[424900568,1781257845000,-150.0,0.00014402,2]
[424900572,1781257845000,-500.0,0.00014451,2]
[424900574,1781257845000,-500.0,0.00014451,2]
[424900573,1781257845000,-500.0,0.00014451,2]
[424900575,1781257845000,-500.0,0.00014451,2]
[424900569,1781257845000,-278.72170502,0.00014402,2]
[424900577,1781257845000,-500.0,0.00014451,2]
[424900570,1781257845000,-150.0,0.0001441,2]
[424900576,1781257845000,-500.0,0.00014451,2]
[424900642,1781257846000,-5800.0,0.00014823,2]
[424900629,1781257846000,-150.0,0.00014777,2]
[424900632,1781257846000,-379.27269436,0.00014798,2]
[424900626,1781257846000,-150.0,0.00014756,2]
[424900640,1781257846000,-10000.0,0.0001482,2]
[424900633,1781257846000,-2000.0,0.000148,5]
[424900627,1781257846000,-10000.0,0.00014759,2]
[424900641,1781257846000,-150.0,0.0001482,2]
[424900643,1781257846000,-5800.0,0.00014832,2]
[424900635,1781257846000,-5800.0,0.00014806,2]
[424900644,1781257846000,-150.0,0.00014836,2]
[424900638,1781257846000,-491.0,0.00014813,2]
[424900637,1781257846000,-150.0,0.00014812,2]
[424900639,1781257846000,-5800.0,0.00014815,2]
[424900646,1781257846000,-5800.0,0.00014841,2]
[424900648,1781257846000,-150.0,0.00014847,2]
[424900653,1781257846000,-5800.0,0.00014858,2]
[424900647,1781257846000,-200.0,0.00014847,2]
[424900645,1781257846000,-150.0,0.00014836,2]
[424900628,1781257846000,-491.0,0.00014765,2]
[424900636,1781257846000,-196.136323,0.0001481,2]
[424900631,1781257846000,-341.34542492,0.00014784,2]
[424900604,1781257846000,-1193.18,0.00014576,2]
[424900625,1781257846000,-332.53545594,0.00014744,2]
[424900603,1781257846000,-150.0,0.00014568,2]
[424900607,1781257846000,-150.0,0.0001464,2]
[424900606,1781257846000,-150.0,0.00014638,2]
[424900605,1781257846000,-150.0,0.00014603,2]
[424900608,1781257846000,-154.217,0.00014653,2]
[424900651,1781257846000,-401.99595,0.0001485,2]
[424900609,1781257846000,-150.0,0.00014653,2]
[424900612,1781257846000,-150.0,0.00014687,2]
[424900613,1781257846000,-150.0,0.00014687,2]
[424900611,1781257846000,-150.0,0.00014673,2]
[424900616,1781257846000,-3562.865,0.00014699,2]
[424900614,1781257846000,-2409.237,0.00014688,2]
[424900615,1781257846000,-1358.0,0.00014699,2]
[424900619,1781257846000,-936.081,0.00014699,2]
[424900618,1781257846000,-1275.0,0.00014699,2]
[424900621,1781257846000,-11065.78885774,0.000147,2]
[424900617,1781257846000,-383.0,0.00014699,2]
[424900622,1781257846000,-150.0,0.00014707,2]
[424900623,1781257846000,-2000.0,0.00014736,2]
[424900620,1781257846000,-6076.0,0.00014699,2]
[424900624,1781257846000,-150.0,0.00014742,2]
[424900630,1781257846000,-491.0,0.00014779,2]
[424900654,1781257846000,-401.99596,0.0001486,2]
[424900610,1781257846000,-177.87,0.0001467,2]
[424900652,1781257846000,-401.99595,0.0001485,2]
[424900679,1781257846000,-501.05595173,0.0001497,2]
[424900683,1781257846000,-198276.3134776,0.00014973,2]
[424900682,1781257846000,-554123.4751699,0.00014971,2]
[424900684,1781257846000,-289.40693849,0.00014973,2]
[424900686,1781257846000,-249.66496614,0.00014986,2]
[424900687,1781257846000,-282.8290565,0.00014986,2]
[424900692,1781257846000,-190.82024742,0.00014986,2]
[424900690,1781257846000,-215.04143497,0.00014986,2]
[424900689,1781257846000,-193.79231313,0.00014986,2]
[424900688,1781257846000,-215.3825728,0.00014986,2]
[424900685,1781257846000,-284.03421377,0.00014986,2]
[424900694,1781257846000,-151.0,0.00014997,2]
[424900693,1781257846000,-491.0,0.00014989,2]
[424900691,1781257846000,-295.39287249,0.00014986,2]
[424900696,1781257846000,-5006915.03412892,0.00015,2]
[424900698,1781257846000,-226.29,0.00015,2]
[424900695,1781257846000,-2000.0,0.00014997,2]
[424900697,1781257846000,-218.94679362,0.00015,2]
[424900700,1781257846000,-150.0,0.00015,2]
[424900699,1781257846000,-883.0,0.00015,2]
[424900650,1781257846000,-5800.0,0.00014849,2]
[424900678,1781257846000,-500.0,0.0001497,2]
[424900681,1781257846000,-491.0,0.00014971,2]
[424900701,1781257846000,-5864.34428283,0.00015,2]
[424900676,1781257846000,-150.0,0.00014951,2]
[424900680,1781257846000,-500.0,0.0001497,2]
[424900656,1781257846000,-150.0,0.00014871,2]
[424900662,1781257846000,-5800.0,0.00014883,2]
[424900661,1781257846000,-150.0,0.00014882,2]
[424900655,1781257846000,-5800.0,0.00014866,2]
[424900660,1781257846000,-200.0,0.00014879,2]
[424900659,1781257846000,-5800.0,0.00014874,2]
[424900657,1781257846000,-1068.84403181,0.00014873,2]
[424900663,1781257846000,-105059.7306,0.00014886,2]
[424900664,1781257846000,-5800.0,0.00014891,2]
[424900665,1781257846000,-469.42,0.000149,2]
[424900649,1781257846000,-803.39,0.00014847,2]
[424900674,1781257846000,-150.0,0.00014917,2]
[424900667,1781257846000,-33280.8127,0.000149,2]
[424900677,1781257846000,-2455.05181476,0.00014961,2]
[424900671,1781257846000,-2000.0,0.000149,5]
[424900673,1781257846000,-680.55544913,0.00014907,2]
[424900675,1781257846000,-736.0,0.00014926,2]
[424900669,1781257846000,-7513.0,0.000149,5]
[424900670,1781257846000,-5800.0,0.000149,2]
[424900668,1781257846000,-10000.0,0.000149,2]
[424900666,1781257846000,-2000.0,0.000149,2]
[424900672,1781257846000,-6205.0,0.000149,5]
[424900734,1781257847000,-10000.0,0.00015076,2]